[Event "Bijnor Open 2024"]
[Site "Bijnor"]
[Date "2024.03.18"]
[Round "3.10"]
[White "Shubh Singh Saini"]
[Black "Ram Prakash, R."]
[Result "1/2-1/2"]
[ECO "A00"]
[WhiteElo "1683"]
[BlackElo "2191"]
[Annotator "RC"]
[PlyCount "157"]
[EventDate "2024.03.17"]
[EventCountry "IND"]
[SourceTitle "playchess.com"]
[Source "ChessBase"]
[SourceQuality "1"]
[TimeControl "5400+30"]

1. e4 {[%emt 0:00:05]} c6 {[%emt 0:00:25]} 2. d3 {[%emt 0:00:08]} d5 {[%emt 0:00:33]} 3. Nd2 {[%emt 0:00:14]} e5 {[%emt 0:05:24]} 4. Ngf3 {[%emt 0:00:29]} Nd7 {[%emt 0:05:18]} 5. g3 {[%emt 0:01:17]} Bc5 {[%emt 0:01:44]} 6. Bg2 {[%emt 0:02:14]} Ngf6 {[%emt 0:02:27]} 7. O-O {[%emt 0:01:00]} O-O {[%emt 0:01:38]} 8. c3 {[%emt 0:04:46]} dxe4 {[%emt 0:16:11]} 9. dxe4 {[%emt 0:01:52]} Re8 {[%emt 0:00:42]} 10. b4 {[%emt 0:06:39]} Bf8 {[%emt 0:01:02]} 11. a3 {[%emt 0:07:58]} a5 {[%emt 0:00:41]} 12. Bb2 {[%emt 0:04:39]} Qc7 {[%emt 0:02:39]} 13. Qc2 {[%emt 0:03:03]} b6 {[%emt 0:04:16]} 14. Rfd1 {[%emt 0:06:33]} Bb7 {[%emt 0:01:18]} 15. Rac1 {[%emt 0:05:15]} Rad8 {[%emt 0:01:30]} 16. h3 {[%emt 0:12:34]} g6 {[%emt 0:01:39]} 17. Nh2 {[%emt 0:02:35]} Bh6 {[%emt 0:01:18]} 18. Rb1 {[%emt 0:05:09]} Nf8 {[%emt 0:00:52]} 19. Nhf1 {[%emt 0:02:18]} Ba6 {[%emt 0:01:46]} 20. c4 {[%emt 0:02:47]} Nh5 {[%emt 0:04:50]} 21. Bc3 {[%emt 0:04:05]} axb4 {[%emt 0:03:01]} 22. axb4 {[%emt 0:00:40]} Ne6 {[%emt 0:01:19]} 23. Qb2 {[%emt 0:03:26]} Nd4 {[%emt 0:01:23]} 24. Re1 {[%emt 0:03:23]} Bc8 {[%emt 0:02:52]} 25. c5 {[%emt 0:03:20]} b5 {[%emt 0:08:31]} 26. Nb3 {[%emt 0:03:08]} Nxb3 {[%emt 0:03:56]} 27. Qxb3 {[%emt 0:00:11]} Be6 {[%emt 0:00:46]} 28. Qb2 {[%emt 0:01:14]} f6 {[%emt 0:01:12]} 29. Ra1 {[%emt 0:02:38]} Ra8 {[%emt 0:05:23]} 30. Ra3 {[%emt 0:02:19]} Qd7 {[%emt 0:01:39]} 31. Kh2 {[%emt 0:01:42]} Rxa3 {[%emt 0:00:14]} 32. Qxa3 {[%emt 0:00:06]} Qd3 {[%emt 0:00:41]} 33. Ne3 {[%emt 0:01:49]} Qd7 {[%emt 0:02:08]} 34. Rd1 {[%emt 0:01:04]} Qc8 {[%emt 0:00:07]} 35. Qa5 {[%emt 0:03:00]} Bf8 {[%emt 0:00:33]} 36. Qb6 {[%emt 0:02:03]} Bb3 {[%emt 0:00:47]} 37. Rd2 {[%emt 0:02:16]} Be7 {[%emt 0:00:59]} 38. Qa7 {[%emt 0:00:34]} Be6 {[%emt 0:00:19]} 39. Rd1 {[%emt 0:00:45]} Bd8 {[%emt 0:03:23]} 40. Qa3 {[%emt 0:00:37]} Ng7 {[%emt 0:00:33]} 41. Qb2 {[%emt 0:00:28]} Bc7 {[%emt 0:00:20]} 42. Nc2 {[%emt 0:00:33]} Rd8 {[%emt 0:00:22]} 43. Qb1 {[%emt 0:00:30]} Rd7 {[%emt 0:02:05]} 44. Ne3 {[%emt 0:00:25]} h5 {[%emt 0:00:13]} 45. Bf1 {[%emt 0:00:34]} Bf7 {[%emt 0:02:27]} 46. f3 {[%emt 0:00:29]} Ne6 {[%emt 0:00:31]} 47. h4 {[%emt 0:00:31]} Kf8 {[%emt 0:05:03]} 48. Bh3 {[%emt 0:00:14]} Ke7 {[%emt 0:00:15]} 49. Rxd7+ {[%emt 0:00:48]} Qxd7 {[%emt 0:00:12]} 50. Qd1 {[%emt 0:00:16]} Qe8 {[%emt 0:00:44]} 51. Qa1 {[%emt 0:00:33]} Qb8 {[%emt 0:00:20]} 52. Qa6 {[%emt 0:00:41]} Nd4 {[%emt 0:00:55]} 53. Kg2 {[%emt 0:00:31]} Be8 {[%emt 0:01:33]} 54. Qc8 {[%emt 0:00:26]} Qxc8 {[%emt 0:01:07]} 55. Bxc8 {[%emt 0:00:02]} Ne6 {[%emt 0:00:46]} 56. Nc2 {[%emt 0:00:39]} Bf7 {[%emt 0:00:13]} 57. Bd2 {[%emt 0:00:45]} Kd8 {[%emt 0:00:14]} 58. Bxe6 {[%emt 0:00:10]} Bxe6 {[%emt 0:00:06]} 59. Bh6 {[%emt 0:00:53]} Ke7 {[%emt 0:00:44]} 60. Bd2 {[%emt 0:00:33]} Bb3 {[%emt 0:00:14]} 61. Ne3 {[%emt 0:00:10]} Ke6 {[%emt 0:00:15]} 62. g4 {[%emt 0:00:23]} hxg4 {[%emt 0:01:27]} 63. fxg4 {[%emt 0:00:03]} Kf7 {[%emt 0:00:31]} 64. Kg3 {[%emt 0:01:16]} Be6 {[%emt 0:01:09]} 65. h5 {[%emt 0:00:37]} gxh5 {[%emt 0:00:32]} 66. gxh5 {[%emt 0:00:30]} Bd8 {[%emt 0:00:18]} 67. Nf5 {[%emt 0:00:28]} Bxf5 {[%emt 0:00:12]} 68. exf5 {[%emt 0:00:04]} Kg7 {[%emt 0:01:08]} 69. Kg4 {[%emt 0:00:23]} Kh7 {[%emt 0:00:46]} 70. h6 {[%emt 0:01:04]} Be7 {[%emt 0:00:15]} 71. Be3 {[%emt 0:00:23]} Bd8 {[%emt 0:01:55]} 72. Bd2 {[%emt 0:00:22]} Bc7 {[%emt 0:00:08]} 73. Kf3 {[%emt 0:00:25]} Kg8 {[%emt 0:00:49]} 74. Be3 {[%emt 0:00:21]} Bd8 {[%emt 0:00:11]} 75. Bd2 {[%emt 0:00:28]} Kh8 {[%emt 0:00:18]} 76. Bc1 {[%emt 0:00:49]} Kh7 {[%emt 0:00:12]} 77. Kg4 {[%emt 0:00:18]} Be7 {[%emt 0:00:32]} 78. Be3 {[%emt 0:00:15]} Bd8 {[%emt 0:01:40]} 79. Bd2 {[%emt 0:00:38]} 1/2-1/2

[Event "Bijnor Open 2024"]
[Site "Bijnor"]
[Date "2024.03.18"]
[Round "4.1"]
[White "Srihari L R"]
[Black "Arnav Agrawal"]
[Result "1-0"]
[ECO "E63"]
[WhiteElo "2490"]
[BlackElo "1843"]
[Annotator "TA"]
[PlyCount "77"]
[EventDate "2024.03.17"]
[EventCountry "IND"]
[SourceTitle "playchess.com"]
[Source "ChessBase"]
[SourceQuality "1"]
[TimeControl "5400+30"]

{[%evp 16,77,33,33,35,27,39,36,27,32,50,38,48,33,39,16,43,44,52,53,61,21,25,39,56,53,89,68,74,68,75,74,127,82,85,70,72,69,76,79,197,167,201,173,193,154,570,552,549,487,481,430,427,341,348,348,344,345,323,320,453,481,483,476]} 1. c4 {[%emt 0:01:11]} g6 {[%emt 0:00:21]} 2. Nf3 {[%emt 0:01:22]} Bg7 {[%emt 0:00:07]} 3. Nc3 {[%emt 0:00:15]} Nf6 {[%emt 0:00:44]} 4. g3 {[%emt 0:00:38]} O-O {[%emt 0:00:33]} 5. Bg2 {[%emt 0:00:16]} d6 {[%emt 0:00:32]} 6. d4 {[%emt 0:00:16]} Nc6 {[%emt 0:01:17]} 7. O-O {[%emt 0:00:15]} a6 {[%emt 0:00:55]} 8. b3 {[%emt 0:01:05]} Rb8 {[%emt 0:01:34]} 9. d5 {[%emt 0:00:18]} Na5 {[%emt 0:00:23]} 10. Bg5 {[%emt 0:00:10]} c5 {[%emt 0:00:56]} 11. dxc6 {[%emt 0:00:28]} Nxc6 {[%emt 0:01:07] White is slightly better.} 12. Rc1 {[%emt 0:00:31]} Bg4 {[%emt 0:08:56]} 13. h3 {[%emt 0:07:47]} Be6 {[%emt 0:13:12]} 14. e4 {[%emt 0:12:42]} Nd7 {[%emt 0:06:42][%cal Bf6d7,Bd7c5,Bc5e6][%mdl 32]} 15. Be3 {[%emt 0:06:23]} Nc5 {[%emt 0:03:51]} 16. Nd4 {[%emt 0:06:52]} Bd7 {[%emt 0:26:58]} 17. Qd2 {[%emt 0:10:22]} Qa5 {[%emt 0:06:20]} 18. Nxc6 {[%emt 0:04:51]} bxc6 {[%emt 0:01:38]} 19. Kh2 {[%emt 0:03:54]} Ne6 {[%emt 0:05:31]} 20. f4 {[%emt 0:01:37]} f5 {[%emt 0:04:24] [#]} 21. e5 $1 {[%emt 0:02:45]} Rfd8 {[%emt 0:00:44]} 22. exd6 {[%emt 0:00:15]} exd6 {[%emt 0:00:05]} 23. Rfd1 {[%emt 0:00:30][%cal Bf1d1,Bd1d2,Bd2d5,Bd5f5,Bf5f6][%mdl 32]} c5 {[%emt 0:04:12]} (23... Be8 $142) 24. Ne2 {[%emt 0:01:01][%cal Bc3e2,Be2g3,Bg3h5][%mdl 32]} Qxd2 {[%emt 0:00:13]} 25. Rxd2 {[%emt 0:00:07]} Bc8 {[%emt 0:02:34]} 26. Rcd1 {[%emt 0:00:53]} Bf8 {[%emt 0:02:24]} 27. g4 {[%emt 0:04:25] White is more active.} Kf7 {[%emt 0:03:39]} (27... Re8 $16) 28. Ng3 {[%emt 0:01:33]} Kf6 {[%emt 0:02:58][%cal Bf7f6,Bf6g7,Bg7h8][%mdl 32]} 29. gxf5 gxf5 {[%emt 0:00:01]} 30. Rd5 {[%emt 0:00:43]} Bh6 $2 {[%emt 0:01:59] [#] Loses the game.} (30... Nd4 $16 {is tougher.} 31. Bxd4+ cxd4 32. R5xd4 (32. R1xd4 Re8 $18) 32... a5) 31. Rxf5+ $18 {[%emt 0:02:35]} Kg7 {[%emt 0:00:34]} 32. Nh5+ {[%emt 0:00:13]} Kh8 {[%emt 0:00:18]} 33. Rf6 {[%emt 0:01:59]} Bg7 {[%emt 0:00:24]} 34. Nxg7 {[%emt 0:00:06]} Kxg7 {[%emt 0:00:05]} 35. Rf5 {[%emt 0:00:11]} Bb7 {[%emt 0:01:15]} 36. Bd5 {[%emt 0:00:39]} Bxd5 {[%emt 0:00:29]} 37. Rfxd5 {[%emt 0:00:09]} (37. cxd5 Kg6 $11) (37. Rdxd5 a5 38. Bd2 Nd4 $18) 37... Rb6 {[%emt 0:00:24]} (37... a5 {keeps fighting.} 38. f5 (38. Rxd6 a4 $18) 38... Nd4 39. Bxd4+ cxd4 40. Rxa5 (40. R1xd4 a4 $18) 40... Ra8) 38. f5 {[%emt 0:00:16]} Nc7 {[%emt 0:00:27]} 39. Rxc5 {[%emt 0:00:08] Weighted Error Value: White=0.17 (very precise) /Black=0.42.  Loses game:     	---       	Black=1      Mistake:       	---       	Black=3      Inaccurate:     	White=2     	Black=2      OK:         	White=12    	Black=9      Best:        	White=1     	---} 1-0

[Event "Bijnor Open 2024"]
[Site "Bijnor"]
[Date "2024.03.18"]
[Round "4.2"]
[White "Mishra Kamad"]
[Black "Neelash Saha"]
[Result "0-1"]
[ECO "A45"]
[WhiteElo "1812"]
[BlackElo "2463"]
[Annotator "TA"]
[PlyCount "82"]
[EventDate "2024.03.17"]
[EventCountry "IND"]
[SourceTitle "playchess.com"]
[Source "ChessBase"]
[SourceQuality "1"]
[TimeControl "5400+30"]

{[%evp 9,82,-8,0,12,11,-29,-28,-37,1,0,3,-11,-11,-75,-2,-114,-104,-112,-94,-93,-57,-144,-151,-148,-147,-184,-172,-165,-166,-204,-206,-195,-211,-217,-200,-233,-230,-238,-225,-237,-242,-246,-237,-286,-285,-291,-275,-318,-317,-409,-409,-557,-563,-471,-261,-278,-279,-273,-273,-310,-322,-358,-377,-383,-383,-376,-338,-338,-312,-506,-506,-1838,-1770,-1485,-1415]} 1. d4 {[%emt 0:00:03]} Nf6 {[%emt 0:01:03]} 2. Bg5 {[%emt 0:00:14]} c5 {[%emt 0:05:47]} 3. d5 {[%emt 0:00:11]} Ne4 {[%emt 0:00:20]} 4. h4 {[%emt 0:00:22]} Qb6 {[%emt 0:02:34]} 5. Nd2 {[%emt 0:00:15]} Nxd2 {[%emt 0:04:59]} 6. Bxd2 {[%emt 0:00:10]} Qxb2 {[%emt 0:00:18]} 7. e4 {[%emt 0:01:12]} Qe5 {[%emt 0:00:54]} 8. Bd3 {[%emt 0:02:17] Black has an edge.} Qc7 {[%emt 0:00:05] Black is weak on the light squares} 9. c4 {[%emt 0:06:07]} e5 {[%emt 0:01:09]} 10. f4 {[%emt 0:03:44]} exf4 {[%emt 0:01:56]} 11. Nh3 {[%emt 0:08:33]} (11. Nf3 $11) 11... Be7 {[%emt 0:01:49]} (11... d6 $1 $17) 12. Nxf4 {[%emt 0:04:14]} (12. Bc3 $11 {keeps the balance.} Bxh4+ 13. Nf2) 12... Bf6 $1 $17 {[%emt 0:00:38][%cal Od7d6]} 13. O-O {[%emt 0:05:57][%cal Oe4e5]} Bd4+ {[%emt 0:01:10]} 14. Kh1 {[%emt 0:01:37][%cal Oe4e5]} d6 {[%emt 0:00:06][%cal Oc7e7]} 15. Rb1 {[%emt 0:02:45]} (15. e5 $1 $15 Bxe5 16. Ne6 Bxe6 (16... fxe6 $2 {perishes.} 17. Qh5+ Kd8 18. Bg5+ $18) 17. dxe6) 15... Qe7 $1 {[%emt 0:00:50]} 16. Qe1 {[%emt 0:08:07] [#]} Nd7 $1 {[%emt 0:01:44]} 17. Qg3 {[%emt 0:04:22]} Be5 {[%emt 0:00:58]} 18. Qe1 {[%emt 0:09:07]} O-O {[%emt 0:04:58]} 19. g3 {[%emt 0:02:57]} Nf6 {[%emt 0:02:26]} 20. Kg2 {[%emt 0:02:28]} Re8 {[%emt 0:02:00]} 21. Qc1 {[%emt 0:06:51]} b6 {[%emt 0:01:15]} 22. Qc2 {[%emt 0:01:14]} Bg4 {[%emt 0:00:55]} 23. Rbe1 {[%emt 0:02:02]} Qd7 {[%emt 0:01:59]} 24. Kh2 {[%emt 0:02:46]} Re7 {[%emt 0:03:06]} 25. Ng2 {[%emt 0:01:46]} Bh3 {[%emt 0:01:29][%cal Oe5g3] White must now prevent ...Bxg3+!} 26. Rf3 {[%emt 0:01:06]} Ng4+ {[%emt 0:01:36]} 27. Kh1 {[%emt 0:01:16]} Bd4 {[%emt 0:00:07]} 28. Ne3 {[%emt 0:01:42]} Rae8 {[%emt 0:04:52]} 29. Nf5 {[%emt 0:01:29]} Nf2+ {[%emt 0:00:20]} 30. Kh2 {[%emt 0:00:41]} Bxf5 {[%emt 0:00:11]} 31. Rxf5 {[%emt 0:01:00]} g6 {[%emt 0:00:23]} (31... Ng4+ $142 32. Kg2 Qxf5 33. exf5 Rxe1) 32. Rxf2 $19 {[%emt 0:00:20]} Bxf2 {[%emt 0:00:06]} 33. Rf1 {[%emt 0:00:14]} Bd4 {[%emt 0:00:04]} 34. Bg5 {[%emt 0:00:44] [#]} f6 $1 {[%emt 0:00:07]} 35. Bxf6 {[%emt 0:03:41]} (35. Bf4 Be5) 35... Bxf6 {[%emt 0:00:12]} 36. Rxf6 {[%emt 0:00:02]} Rf7 {[%emt 0:00:06]} 37. Rxf7 {[%emt 0:01:22]} Qxf7 {[%emt 0:00:05]} 38. Kg2 {[%emt 0:00:27] Prevents Qf3+} Qf6 {[%emt 0:00:10]} 39. Be2 $2 {[%emt 0:00:29]} (39. Qe2 {was called for.}) 39... Rf8 {[%emt 0:00:11] Strongly threatening ...Qf2+. Black is clearly winning.} 40. Qd2 {[%emt 0:01:41]} (40. Qd3 $142) 40... Qf2+ {[%emt 0:00:21]} 41. Kh3 {[%emt 0:00:11]} Rf3 {[%emt 0:00:38] Weighted Error Value: White=0.51/Black=0.14 (very precise) .  Mistake:       	White=5     	Black=2      Inaccurate:     	White=2     	Black=2      OK:         	White=5     	Black=19     Best:        	White=4     	Black=3      Strong:       	---       	Black=1      Brilliant:      	---       	Black=1} 0-1

[Event "Bijnor Open 2024"]
[Site "Bijnor"]
[Date "2024.03.18"]
[Round "4.3"]
[White "Laxman, R.R."]
[Black "Shreyash Singh"]
[Result "1/2-1/2"]
[ECO "E06"]
[WhiteElo "2331"]
[BlackElo "1807"]
[Annotator "TA"]
[PlyCount "62"]
[EventDate "2024.03.17"]
[EventCountry "IND"]
[SourceTitle "playchess.com"]
[Source "ChessBase"]
[SourceQuality "1"]
[TimeControl "5400+30"]

{[%evp 19,62,0,0,0,6,-11,40,44,49,29,34,28,83,45,45,45,67,60,65,63,81,41,130,28,64,60,51,33,27,28,28,16,27,0,0,-43,0,-131,-147,-210,-200,-235,-233,-208,-197]} 1. d4 {[%emt 0:00:09]} Nf6 {[%emt 0:00:08]} 2. c4 {[%emt 0:00:07]} e6 {[%emt 0:00:04]} 3. g3 {[%emt 0:00:02]} d5 {[%emt 0:00:05]} 4. Nf3 {[%emt 0:00:07]} Be7 {[%emt 0:00:11]} 5. Bg2 {[%emt 0:00:06]} O-O {[%emt 0:00:06]} 6. O-O {[%emt 0:00:04]} c6 {[%emt 0:00:03]} 7. Nbd2 {[%emt 0:00:17]} b6 {[%emt 0:00:12]} 8. Qc2 {[%emt 0:00:11]} Bb7 {[%emt 0:00:15]} 9. e4 {[%emt 0:00:30]} Na6 {[%emt 0:00:05][%cal Bb8a6,Ba6c7,Bc7d5][%mdl 32]} 10. e5 {[%emt 0:01:30]} Nd7 {[%emt 0:00:09]} 11. a3 {[%emt 0:01:02]} Nc7 {[%emt 0:00:15]} 12. Rd1 {[%emt 0:03:11]} dxc4 {[%emt 0:06:08]} (12... c5 $11) 13. Nxc4 $14 {[%emt 0:01:00] White is slightly better.} Nd5 {[%emt 0:00:49]} 14. b4 {[%emt 0:00:51]} a5 {[%emt 0:12:40]} 15. bxa5 {[%emt 0:00:04]} bxa5 {[%emt 0:00:05]} (15... b5 $11 16. Nd6 (16. Rb1 Qb8 $14) 16... Bxd6) 16. h4 {[%emt 0:01:21]} h6 {[%emt 0:00:44] Wards off Ng5} 17. Bd2 {[%emt 0:00:08]} a4 {[%emt 0:16:31]} 18. Qe4 {[%emt 0:01:32]} c5 {[%emt 0:06:11]} 19. Qg4 {[%emt 0:01:51]} Kh7 {[%emt 0:03:35]} 20. Rab1 {[%emt 0:08:31]} Ba6 {[%emt 0:07:36] [#]} (20... Rb8 $1 $14) 21. Bf1 {[%emt 0:00:17] White is more active.} ({White should play} 21. Ne3 $1 $16) 21... g6 {[%emt 0:03:55][%cal Bg7g6,Bg6g5][%mdl 32]} 22. h5 {[%emt 0:00:29] hxg6+ is the strong threat.} g5 {[%emt 0:01:15]} 23. Qe4+ {[%emt 0:02:47]} (23. dxc5 {simplifies} Nxc5 24. Ba5 Qe8 25. Bb4) 23... Kg7 $1 {[%emt 0:00:33]} 24. Ne3 {[%emt 0:02:34]} Bxf1 {[%emt 0:02:00]} 25. Rxf1 {[%emt 0:00:08]} ({Don't play} 25. Kxf1 Nxe3+ 26. Bxe3 Qa5 $16) (25. Kxf1 {is more complex.} Nxe3+ 26. Bxe3 Rb8 27. Rbc1) 25... Nxe3 {[%emt 0:00:52]} 26. fxe3 {[%emt 0:00:17]} cxd4 {[%emt 0:00:41]} 27. exd4 {[%emt 0:00:09]} Nb6 {[%emt 0:01:11][%cal Oa8c8]} 28. Bb4 {[%emt 0:00:51]} (28. Qd3 $11 {keeps the balance.}) 28... Nd5 $17 {[%emt 0:00:37] Black is clearly better.} 29. Bxe7 {[%emt 0:00:33]} (29. Bd2 $17) 29... Qxe7 $19 {[%emt 0:00:39]} 30. Qd3 {[%emt 1:14:51]} Rac8 {[%emt 0:37:55]} 31. Rfc1 {Prevents Rc3.} Rxc1+ {[%emt 0:00:30] Weighted Error Value: White=0.30/Black=0.15 (very precise) .  Mistake:       	White=3     	Black=3      Inaccurate:     	White=4     	Black=2      OK:         	White=6     	Black=10     Best:        	---       	Black=1      Strong:       	---       	Black=1} 1/2-1/2

[Event "Bijnor Open 2024"]
[Site "Bijnor"]
[Date "2024.03.18"]
[Round "4.4"]
[White "Vatsal Singla"]
[Black "Vrashank Chouhan"]
[Result "1-0"]
[ECO "C01"]
[WhiteElo "1795"]
[BlackElo "2330"]
[Annotator "TA"]
[PlyCount "83"]
[EventDate "2024.03.17"]
[EventCountry "IND"]
[SourceTitle "playchess.com"]
[Source "ChessBase"]
[SourceQuality "1"]
[TimeControl "5400+30"]

{[%evp 10,83,17,7,14,2,9,8,0,0,0,-83,-90,-100,-84,-116,-119,-119,-131,-137,-22,-24,-16,-26,0,0,0,0,0,0,10,3,6,23,14,0,0,0,5,0,0,-27,150,148,131,112,585,479,506,0,327,329,343,333,323,215,226,183,366,227,177,169,666,664,886,796,920,881,1155,1129,1075,886,6102,5699,29990,29990]} 1. e4 {[%emt 0:00:01]} e6 {[%emt 0:00:15]} 2. d4 {[%emt 0:00:03]} d5 {[%emt 0:00:06]} 3. Nc3 {[%emt 0:00:02]} Bb4 {[%emt 0:00:07]} 4. exd5 {[%emt 0:00:04]} exd5 {[%emt 0:00:05]} 5. Bd3 {[%emt 0:00:04]} Ne7 {[%emt 0:00:07]} 6. Qh5 {[%emt 0:02:55][%cal Og1f3]} Be6 {[%emt 0:00:34]} 7. Nge2 {[%emt 0:00:26][%cal Oe2f4]} (7. Bxh7 $2 Bf5 $19) 7... Nbc6 {[%emt 0:01:32]} 8. h3 {[%emt 0:07:22][%cal Oa2a3]} (8. Bxh7 $2 Bf5 9. Qg5 Rxh7 $19 (9... Bxh7 $2 10. Qxg7 Kd7 11. f3 $19)) 8... Qd7 {[%emt 0:05:26] The position is equal.} 9. a3 {[%emt 0:05:48]} Ba5 {[%emt 0:03:39]} 10. g4 {[%emt 0:04:32]} (10. O-O $11) 10... Bxc3+ $17 {[%emt 0:09:30]} 11. bxc3 {[%emt 0:01:34][%cal Oh5g5]} O-O-O {[%emt 0:04:50]} 12. a4 {[%emt 0:03:04][%cal Oe2f4]} h6 {[%emt 0:06:40]} 13. f4 {[%emt 0:29:14]} g6 {[%emt 0:18:26]} 14. Qh4 {[%emt 0:00:19] [#]} g5 {[%emt 0:04:40]} 15. Qf2 $11 {[%emt 0:12:57] f5 would now be deadly.} (15. fxg5 hxg5 16. Qxg5 Bxg4 $17) 15... f5 {[%emt 0:00:20]} 16. fxg5 {[%emt 0:01:21]} hxg5 {[%emt 0:03:41]} 17. Bxg5 {[%emt 0:03:57] Strongly threatening Bf6.} fxg4 {[%emt 0:00:35]} 18. h4 {[%emt 0:00:09]} Rdf8 {[%emt 0:03:22]} 19. Nf4 {[%emt 0:04:02]} Bf5 {[%emt 0:05:49]} 20. Qg2 {[%emt 0:02:54]} Be4 {[%emt 0:05:20]} 21. Bxe4 {[%emt 0:01:28]} dxe4 {[%emt 0:00:02]} 22. Rg1 {[%emt 0:05:03]} Nd5 {[%emt 0:04:13]} 23. Ng6 {[%emt 0:06:04]} Nxc3 {[%emt 0:15:20][%cal Oc6d4] And now ...Nxd4! would win.} 24. Qxg4 {[%emt 0:00:56]} Rf5 $1 {[%emt 0:01:54]} 25. d5 {[%emt 0:04:00] [#] Really sharp!} Nd4 {[%emt 0:05:10]} 26. Ne7+ $16 {[%emt 0:00:25]} Kb8 {[%emt 0:00:05]} 27. Nxf5 {[%emt 0:00:09]} Nxf5 {[%emt 0:00:52][%mdl 8192] A dynamic duo of knights.} (27... Nxc2+ $16 28. Kd2 Nxa1) 28. Bf6 {[%emt 0:00:54]} Rf8 {[%emt 0:01:16]} 29. Qg8 {[%emt 0:01:57]} Qe8 $2 {[%emt 0:00:25][%mdl 8192]} (29... Qxd5 30. Qxf8+) (29... Qd6 $1 $11 {and Black is okay.} 30. Bxc3 Qc5) 30. Qg6 $18 {[%emt 0:01:05]} Qxg6 {[%emt 0:00:33]} 31. Rxg6 {[%emt 0:00:03]} Nxd5 {[%emt 0:00:10]} 32. Bg5 {[%emt 0:00:47] aiming for 0-0-0.} Nd4 {[%emt 0:00:54]} 33. O-O-O {[%emt 0:01:00]} Nc3 $2 {[%emt 0:00:08]} (33... c5 {keeps fighting.}) 34. Re1 {[%emt 0:00:46] Threatens to win with h5.} (34. Rxd4 Ne2+ 35. Kb2 Nxd4 $18) 34... b6 {[%emt 0:00:45]} 35. Bf6 {[%emt 0:00:41]} c5 {[%emt 0:00:35]} (35... Nde2+ 36. Kd2 e3+ 37. Kxe3 Nd5+ 38. Kd2 (38. Kxe2 Nf4+ 39. Kd1 Nxg6 $14) 38... Nef4 (38... Rxf6 $2 {loses.} 39. Rxf6 Nxf6 40. Rxe2 $18)) 36. h5 {[%emt 0:00:29][%cal Bh4h5,Bh5h6,Bh6h7][%mdl 32]} Kc8 {[%emt 0:00:31]} 37. Bxd4 {[%emt 0:00:53]} cxd4 {[%emt 0:00:06]} 38. h6 {[%emt 0:00:15] Hoping for h7.} Kd7 {[%emt 0:00:47]} 39. h7 {[%emt 0:00:06]} d3 {[%emt 0:00:38]} 40. cxd3 {[%emt 0:01:31] Black must now prevent Rg8.} exd3 {[%emt 0:00:01]} 41. Kd2 {[%emt 0:00:09][%csl LRc3,LRd3] White threatens Rg8 and mate.} Ne2 {[%emt 0:00:15]} 42. Rg8 {[%emt 0:00:26] Weighted Error Value: White=0.36/Black=0.78.  Loses game:     	---       	Black=2      Missed win:     	White=1     	---        Mistake:       	White=1     	Black=4      Inaccurate:     	White=4     	Black=2      OK:         	White=11    	Black=9      Best:        	White=4     	Black=2      Strong:       	---       	Black=1} ({Inferior is} 42. Kxd3 Nf4+ 43. Kc4 Nxg6 $17) 1-0